fUSD/lending_fUSD_20250608
["ID","MTS","AMOUNT","RATE_DAILY","PERIOD"]
[364963946,1749359145563,-480.0,0.00019178,2]
[364963947,1749359145586,-480.0,0.00019178,2]
[364963948,1749359145610,-480.0,0.00019178,2]
[364963949,1749359145637,-480.0,0.00019178,2]
[364963950,1749359145662,-480.0,0.00019178,2]
[364963951,1749359145685,-480.0,0.00019178,2]
[364963952,1749359145710,-491.26,0.00019178,2]
[364963953,1749359145737,-480.0,0.00019178,2]
[364963954,1749359145765,-480.0,0.00019178,2]
[364963955,1749359145788,-4043.04,0.00019178,2]
[364963956,1749359145811,-480.0,0.00019178,2]
[364963957,1749359145834,-480.0,0.00019178,2]
[364963958,1749359145860,-480.0,0.00019178,2]
[364963959,1749359145885,-550.08,0.00019178,2]
[364963960,1749359145910,-1013.64,0.00019178,2]
[364963961,1749359145932,-480.0,0.00019178,2]
[364963962,1749359145957,-480.0,0.00019178,2]
[364963963,1749359145981,-784.0,0.00019178,2]
[364963964,1749359146007,-856.23,0.00019178,2]
[364963965,1749359146030,-480.0,0.00019178,2]
[364963966,1749359146055,-480.0,0.00019178,2]
[364963967,1749359146078,-825.33773569,0.00019178,2]
[364963995,1749359411476,2000.0,0.000172,60]
[364964000,1749359431686,-150.0,0.00018311,7]
[364964001,1749359431697,-860.39510794,0.00018954,2]
[364964002,1749359431739,-339.60489206,0.00018954,2]
[364964003,1749359431749,-907.05510794,0.00018955,2]
[364964004,1749359431849,-11729.56434824,0.00018955,2]
[364964005,1749359431859,-207.4,0.00019166,2]
[364964006,1749359431869,-513.45300837,0.00019178,2]
[364964007,1749359431879,-480.0,0.00019178,2]
[364964008,1749359431889,-151.0,0.00019178,2]
[364964009,1749359431899,-480.0,0.00019178,2]
[364964010,1749359431909,-579.43,0.00019178,2]
[364964011,1749359431919,-480.0,0.00019178,2]
[364964012,1749359431929,-480.0,0.00019178,2]
[364964013,1749359431939,-480.0,0.00019178,2]
[364964014,1749359431949,-480.0,0.00019178,2]
[364964015,1749359431959,-480.0,0.00019178,2]
[364964016,1749359431970,-480.0,0.00019178,2]
[364964017,1749359431980,-461.56625845,0.00019178,2]
[364964018,1749359431990,-480.0,0.00019178,2]
[364964019,1749359432001,-480.0,0.00019178,2]
[364964020,1749359432010,-305.04717536,0.00019178,2]
[364964464,1749359437624,-174.95282464,0.00019178,2]
[364964465,1749359437634,-105.45417536,0.00019178,2]
[364964466,1749359437678,-374.54582464,0.00019178,2]
[364964467,1749359437687,-694.02,0.00019178,2]
[364964468,1749359437697,-3360.12355309,0.00019178,2]
[364964469,1749359437735,-1861.46644691,0.00019178,2]
[364964470,1749359437745,-480.0,0.00019178,2]
[364964471,1749359437755,-311.7533129,0.00019178,2]
[364964491,1749359794547,305.32,0.00013699,2]
[364964493,1749359892180,652.01,0.00016197,2]
[364964510,1749360631854,-205.0,0.00017504,2]
[364964511,1749360631865,-161.31013758,0.00017938,2]
[364964512,1749360631874,-150.0,0.00018038,7]
[364964513,1749360631884,-179.57,0.00018039,2]
[364964514,1749360631894,-300.0,0.00018073,2]
[364964515,1749360631904,-300.0,0.00018073,2]
[364964516,1749360631914,-939.77087874,0.00018073,2]
[364964517,1749360631926,-260.22912126,0.00018073,2]
[364964518,1749360631935,-246.34087874,0.00018074,2]
[364964519,1749360631971,-936.79460021,0.00018074,2]
[364964826,1749360637757,-603.465158,0.00018074,2]
[364964827,1749360637927,-3961.0322,0.00018074,2]
[364965018,1749360640003,-3181.32716305,0.00018074,2]
[364965020,1749360640013,-228.62,0.0001811,2]
[364965022,1749360640024,-1000.0,0.00018348,2]
[364965025,1749360640035,-151.43,0.00018441,2]
[364965027,1749360640044,-652.01,0.00018461,2]
[364965029,1749360640054,-796.63,0.000185,2]
[364965031,1749360640065,-340.44,0.00018578,2]
[364965033,1749360640074,-796.51,0.000186,2]
[364965035,1749360640086,-796.51,0.000186,2]
[364965037,1749360640096,-460.94,0.000186,2]
[364965039,1749360640106,-461.11,0.000186,2]
[364965041,1749360640116,-150.0,0.00018811,2]
[364965043,1749360640131,-168.0,0.00018818,2]
[364965045,1749360640142,-168.0,0.00018836,2]
[364965047,1749360640153,-168.0,0.00018885,2]
[364965049,1749360640162,-151.0,0.00018899,2]
[364965051,1749360640172,-151.0,0.00018899,2]
[364965053,1749360640181,-151.0,0.00018899,2]
[364965055,1749360640190,-207.4,0.00018899,2]
[364965057,1749360640200,-300.0,0.00018899,2]
[364965059,1749360640209,-300.0,0.00018899,2]
[364965061,1749360640219,-431.95965328,0.00018899,2]
[364965063,1749360640228,-796.51,0.000189,2]
[364965065,1749360640239,-461.11,0.000189,2]
[364965067,1749360640249,-461.11,0.000189,2]
[364965069,1749360640259,-150.0,0.000189,2]
[364965071,1749360640268,-461.11,0.000189,2]
[364965073,1749360640278,-796.51,0.000189,2]
[364965075,1749360640287,-461.04,0.000189,2]
[364965077,1749360640297,-150.0,0.000189,2]
[364965079,1749360640307,-459.84,0.000189,2]
[364965081,1749360640317,-796.51,0.000189,2]
[364965083,1749360640327,-461.04,0.000189,2]
[364965085,1749360640338,-796.51,0.000189,2]
[364965087,1749360640348,-170.61,0.000189,2]
[364965089,1749360640358,-150.0,0.000189,2]
[364965091,1749360640368,-921.79,0.000189,2]
[364965093,1749360640378,-2062.76654186,0.0001891,2]
[364965096,1749360640394,-3470.56333339,0.0001891,2]
[364965098,1749360640403,-168.0,0.00018912,2]
[364965100,1749360640413,-168.0,0.00018914,2]
[364965101,1749360640422,-168.0,0.00018954,2]
[364965103,1749360640432,-168.0,0.00018965,2]
[364965106,1749360640442,-168.0,0.00018967,2]
[364965107,1749360640452,-163.2,0.00018986,2]
[364965110,1749360640463,-384.39,0.00019,2]
[364965112,1749360640473,-250.0,0.00019,2]
[364965114,1749360640482,-168.0,0.0001905,2]
[364965116,1749360640491,-168.0,0.00019054,2]
[364965117,1749360640501,-142.16352581,0.00019068,2]
[364965120,1749360640513,-25.83647419,0.00019068,2]
[364965122,1749360640523,-168.0,0.00019071,2]
[364965124,1749360640532,-168.0,0.00019076,2]
[364965126,1749360640541,-4458.38443333,0.00019078,2]
[364965128,1749360640551,-370.56644566,0.00019078,2]
[364965130,1749360640561,-3956.5751,0.00019078,2]
[364965132,1749360640570,-796.51,0.00019082,2]
[364965134,1749360640580,-796.51,0.00019082,2]
[364965136,1749360640589,-796.63,0.00019082,2]
[364965138,1749360640599,-168.0,0.00019083,2]
[364965140,1749360640608,-168.0,0.00019089,2]
[364965142,1749360640618,-796.51,0.000191,2]
[364965144,1749360640628,-168.0,0.00019113,2]
[364965146,1749360640637,-168.0,0.00019117,2]
[364965148,1749360640647,-370.56644551,0.00019121,2]
[364965150,1749360640656,-168.0,0.00019123,2]
[364965152,1749360640665,-168.0,0.00019136,2]
[364965154,1749360640674,-168.0,0.0001914,2]
[364965156,1749360640683,-168.0,0.0001914,2]
[364965158,1749360640692,-168.0,0.00019143,2]
[364965160,1749360640702,-656.70972076,0.00019151,2]
[364965162,1749360640711,-168.0,0.00019163,2]
[364965164,1749360640720,-370.56644551,0.00019165,2]
[364965166,1749360640730,-4458.38443331,0.00019169,2]
[364965168,1749360640739,-507.99253882,0.00019173,2]
[364965170,1749360640749,-500.0,0.00019173,2]
[364965172,1749360640758,-242.22548561,0.00019177,2]
[364965174,1749360640767,-152.70869596,0.00019177,2]
[364965176,1749360640776,-169.55783992,0.00019177,2]
[364965178,1749360640785,-1268.44025368,0.00019178,2]
[364965180,1749360640797,-344.64820843,0.00019178,2]
[364965417,1749360646034,-641.71021389,0.00019178,2]
[364965418,1749360646151,-640.114258,0.00019178,2]
[364965419,1749360646163,-1972.11601987,0.00019178,2]
[364965424,1749360969204,290.05,0.00013699,2]
[364965426,1749361087323,200.30626315,0.00013631,2]
[364965427,1749361237250,586.8,0.00016338,2]
[364965510,1749361781485,205.0,0.00017045,2]
[364965511,1749361831924,-846.42951688,0.00018125,2]
[364965512,1749361832142,-1151.07759297,0.00018125,2]
[364965513,1749361832199,-428.65015924,0.00018125,2]
[364965514,1749361832209,-150.0,0.00018197,7]
[364965515,1749361832220,-152.99,0.00018225,2]
[364965516,1749361832230,-1000.0,0.00018305,2]
[364965517,1749361832241,-152.0,0.000185,3]
[364965518,1749361832251,-586.8,0.00018602,2]
[364965519,1749361832260,-719.84155404,0.000187,2]
[364965520,1749361832272,-76.78844596,0.000187,2]
[364965522,1749361832281,-163.27,0.000187,2]
[364965524,1749361832290,-163.27,0.000187,2]
[364965526,1749361832300,-918.24,0.000187,2]
[364965528,1749361832310,-166.61,0.00018757,2]
[364965530,1749361832320,-1200.0,0.00018777,2]
[364965532,1749361832329,-170.61,0.00018778,2]
[364965534,1749361832339,-668.84926743,0.00018778,2]
[364965995,1749361837853,-39.83073257,0.00018778,2]
[364965997,1749361837864,-163.27,0.00018778,2]
[364965999,1749361837874,-158.006937,0.00018794,2]
[364966001,1749361837884,-90.96733043,0.00018806,2]
[364966004,1749361837896,-209.03266957,0.00018806,2]
[364966006,1749361837906,-228.88850776,0.00018807,2]
[364966008,1749361837919,-97.51149224,0.00018807,2]
[364966010,1749361837928,-250.0,0.00019,2]
[364966012,1749361837938,-908.96,0.00019019,2]
[364966014,1749361837947,-300.0,0.00019077,2]
[364966016,1749361837962,-314.98147875,0.00019078,2]
[364966018,1749361837972,-175.16411357,0.00019078,2]
[364966020,1749361837982,-152.0202527,0.00019078,2]
[364966022,1749361837992,-152.0,0.00019115,4]
[364966024,1749361838002,-314.98147868,0.00019121,2]
[364966026,1749361838012,-207.4,0.0001913,2]
[364966028,1749361838021,-14067.93572815,0.00019142,2]
[364966030,1749361838033,-1103.78704119,0.00019142,2]
[364966047,1749361838181,-276.01448242,0.00019142,2]
[364966049,1749361838193,-6607.57195318,0.00019142,2]
[364966053,1749361838219,-1387.8759951,0.00019142,2]
[364966337,1749361840314,-6352.31697088,0.00019142,2]
[364966371,1749361840479,-2269.99555988,0.00019142,2]
[364966376,1749361840491,-333.81892786,0.00019142,2]
[364966529,1749361841302,206.0,0.00017045,2]
[364966836,1749361846117,-3128.36414134,0.00019142,2]
[364966837,1749361846127,-314.98147868,0.00019165,2]
[364966838,1749361846138,-151.0,0.00019166,2]
[364966839,1749361846147,-357.27292254,0.00019177,2]
[364966840,1749361846157,-500.0,0.00019177,2]
[364966841,1749361846167,-181.68094418,0.00019177,2]
[364966842,1749361846177,-500.0,0.00019177,2]
[364966843,1749361846187,-16.70051326,0.00019177,2]
[364966846,1749362143591,275.54,0.00013699,2]
[364966853,1749362677203,556.06,0.00016282,2]
[364966855,1749362695357,260.0,0.000139,5]
[364966940,1749363032053,-205.0,0.0001795,2]
[364966941,1749363032064,-234.98860693,0.00018146,2]
[364966942,1749363032076,-1834.93914759,0.00018146,2]
[364966943,1749363032329,-681.07224548,0.00018146,2]
[364966944,1749363032340,-1200.0,0.00018232,2]
[364966945,1749363032350,-169.25,0.00018232,2]
[364966946,1749363032364,-300.0,0.00018233,2]
[364966947,1749363032373,-300.0,0.00018233,2]
[364966948,1749363032382,-300.0,0.00018233,2]
[364966950,1749363032392,-12869.26390864,0.00018234,2]
[364966952,1749363032403,-3971.89609136,0.00018234,2]
[364966954,1749363032414,-150.0,0.0001824,7]
[364966956,1749363032423,-264.33,0.00018242,2]
[364966958,1749363032432,-207.4,0.00018249,2]
[364966960,1749363032442,-1000.0,0.00018265,2]
[364966962,1749363032453,-200.0,0.00018266,2]
[364966963,1749363032462,-14094.85,0.0001828,2]
[364966964,1749363032471,-503.25,0.00018505,7]
[364966965,1749363032480,-500.0,0.00018505,7]
[364966966,1749363032501,-515.44,0.00018505,7]
[364966968,1749363032511,-556.06,0.00018546,2]
[364966970,1749363032521,-1159.0,0.00019041,2]
[364966972,1749363032531,-2908.46344273,0.00019041,2]
[364966973,1749363032543,-1396.36930154,0.00019041,2]
[364966978,1749363038031,-1000.0,0.00018219,2]
[364966979,1749363038040,-2745.34225573,0.00019041,2]
[364966980,1749363038052,-279.871,0.00019041,2]
[364966981,1749363038062,-4083.0,0.00019041,2]
[364966982,1749363038071,-858.249,0.00019041,2]
[364966983,1749363038083,-175.16411357,0.00019078,2]
[364966984,1749363038095,-282.81678227,0.00019078,2]
[364966985,1749363038105,-879.55684843,0.00019078,2]
[364966986,1749363038118,-2687.15069829,0.00019078,2]
[364966987,1749363038129,-459.03,0.000191,2]
[364966988,1749363038138,-163.27,0.000191,2]
[364966989,1749363038147,-461.04,0.000191,2]
[364966990,1749363038158,-771.88141393,0.000191,2]
[364966991,1749363038179,-148.19858607,0.000191,2]
[364966992,1749363038188,-216.24874221,0.000191,2]
[364967004,1749363040461,-887.452,0.00019041,2]
[364967005,1749363040471,-705.43125779,0.000191,2]
[364967006,1749363040480,-282.81678223,0.00019121,2]
[364967007,1749363040490,-282.81678223,0.00019165,2]
[364967008,1749363040499,-151.0,0.00019166,2]
[364967009,1749363040509,-3566.70754664,0.00019169,2]
[364967010,1749363040519,-500.0,0.00019173,2]
[364967011,1749363040528,-179.442993,0.00019176,2]
[364967012,1749363040538,-500.0,0.00019177,2]
[364967013,1749363040547,-157.09335043,0.00019177,2]
[364967014,1749363040557,-5000.0,0.00019178,2]
[364967015,1749363040567,-480.0,0.00019178,2]
[364967016,1749363040576,-480.0,0.00019178,2]
[364967017,1749363040586,-578.18318915,0.00019178,2]
[364967018,1749363040596,-480.0,0.00019178,2]
[364967019,1749363040605,-480.0,0.00019178,2]
[364967020,1749363040615,-480.0,0.00019178,2]
[364967021,1749363040625,-480.0,0.00019178,2]
[364967022,1749363040634,-480.0,0.00019178,2]
[364967023,1749363040643,-480.0,0.00019178,2]
[364967024,1749363040653,-480.0,0.00019178,2]
[364967025,1749363040665,-480.0,0.00019178,2]
[364967026,1749363040676,-480.0,0.00019178,2]
[364967027,1749363040686,-480.0,0.00019178,2]
[364967028,1749363040696,-480.0,0.00019178,2]
[364967029,1749363040706,-151.0,0.00019178,2]
[364967030,1749363040715,-151.0,0.00019178,2]
[364967031,1749363040725,-151.0,0.00019178,2]
[364967032,1749363040735,-151.0,0.00019178,2]
[364967033,1749363040750,-151.0,0.00019178,2]
[364967034,1749363040760,-246.489751,0.00019178,2]
[364967035,1749363040771,-480.0,0.00019178,2]
[364967036,1749363040780,-440.66680677,0.00019178,2]
[364967037,1749363040790,-480.0,0.00019178,2]
[364967038,1749363040799,-480.0,0.00019178,2]
[364967039,1749363040809,-480.0,0.00019178,2]
[364967040,1749363040819,-480.0,0.00019178,2]
[364967041,1749363040829,-480.0,0.00019178,2]
[364967042,1749363040838,-480.0,0.00019178,2]
[364967043,1749363040848,-480.0,0.00019178,2]
[364967044,1749363040858,-480.0,0.00019178,2]
[364967045,1749363040867,-480.0,0.00019178,2]
[364967046,1749363040877,-480.0,0.00019178,2]
[364967047,1749363040887,-480.0,0.00019178,2]
[364967048,1749363040897,-480.0,0.00019178,2]
[364967049,1749363040907,-480.0,0.00019178,2]
[364967050,1749363040917,-480.0,0.00019178,2]
[364967051,1749363040927,-480.0,0.00019178,2]
[364967053,1749363040937,-480.0,0.00019178,2]
[364967054,1749363040947,-480.0,0.00019178,2]
[364967056,1749363040956,-480.0,0.00019178,2]
[364967058,1749363040966,-480.0,0.00019178,2]
[364967060,1749363040976,-480.0,0.00019178,2]
[364967062,1749363040986,-248.86541209,0.00019178,2]
[364967064,1749363040995,-480.0,0.00019178,2]
[364967066,1749363041006,-480.0,0.00019178,2]
[364967068,1749363041015,-480.0,0.00019178,2]
[364967070,1749363041024,-480.0,0.00019178,2]
[364967072,1749363041034,-480.0,0.00019178,2]
[364967074,1749363041043,-480.0,0.00019178,2]
[364967076,1749363041053,-423.11909705,0.00019178,2]
[364967078,1749363041062,-431.40266566,0.00019178,2]
[364967080,1749363041071,-480.0,0.00019178,2]
[364967082,1749363041081,-480.0,0.00019178,2]
[364967084,1749363041090,-480.0,0.00019178,2]
[364967086,1749363041100,-480.0,0.00019178,2]
[364967088,1749363041109,-480.0,0.00019178,2]
[364967090,1749363041118,-1929.941956,0.00019178,2]
[364967092,1749363041128,-480.0,0.00019178,2]
[364967094,1749363041137,-507.11,0.00019178,2]
[364967096,1749363041147,-480.0,0.00019178,2]
[364967098,1749363041156,-480.0,0.00019178,2]
[364967100,1749363041166,-514.1,0.00019178,2]
[364967102,1749363041175,-480.0,0.00019178,2]
[364967103,1749363041185,-2233.853385,0.00019178,2]
[364967105,1749363041194,-480.0,0.00019178,2]
[364967107,1749363041204,-480.0,0.00019178,2]
[364967109,1749363041213,-480.0,0.00019178,2]
[364967110,1749363041222,-480.0,0.00019178,2]
[364967111,1749363041232,-551.02176202,0.00019178,2]
[364967112,1749363041241,-480.0,0.00019178,2]
[364967113,1749363041250,-480.0,0.00019178,2]
[364967114,1749363041259,-480.0,0.00019178,2]
[364967115,1749363041268,-480.0,0.00019178,2]
[364967116,1749363041279,-480.0,0.00019178,2]
[364967117,1749363041288,-1000.0,0.00019178,2]
[364967118,1749363041297,-578.94394117,0.00019178,2]
[364967119,1749363041306,-480.0,0.00019178,2]
[364967120,1749363041315,-480.0,0.00019178,2]
[364967121,1749363041325,-480.0,0.00019178,2]
[364967122,1749363041334,-480.0,0.00019178,2]
[364967123,1749363041343,-480.0,0.00019178,2]
[364967124,1749363041352,-528.12,0.00019178,2]
[364967125,1749363041365,-480.0,0.00019178,2]
[364967126,1749363041374,-480.0,0.00019178,2]
[364967127,1749363041383,-480.0,0.00019178,2]
[364967128,1749363041392,-480.0,0.00019178,2]
[364967129,1749363041402,-475.98783047,0.00019178,2]
[364967130,1749363041411,-480.0,0.00019178,2]
[364967131,1749363041421,-207.45,0.00019178,2]
[364967132,1749363041430,-480.0,0.00019178,2]
[364967133,1749363041439,-480.0,0.00019178,2]
[364967134,1749363041448,-480.0,0.00019178,2]
[364967135,1749363041457,-480.0,0.00019178,2]
[364967136,1749363041467,-291.78710298,0.00019178,2]
[364967137,1749363041481,-188.21289702,0.00019178,2]
[364967138,1749363041491,-480.0,0.00019178,2]
[364967139,1749363041500,-480.0,0.00019178,2]
[364967140,1749363041509,-480.0,0.00019178,2]
[364967141,1749363041518,-788.59,0.00019178,2]
[364967142,1749363041527,-480.0,0.00019178,2]
[364967143,1749363041537,-642.2,0.00019178,2]
[364967144,1749363041546,-480.0,0.00019178,2]
[364967145,1749363041555,-105.00629755,0.00019178,2]
[364967146,1749363041567,-141.10370245,0.00019178,2]
[364967147,1749363041577,-480.0,0.00019178,2]
[364967148,1749363041586,-480.0,0.00019178,2]
[364967149,1749363041596,-4903.25,0.00019178,2]
[364967150,1749363041605,-500.0,0.00019178,2]
[364967151,1749363041615,-480.0,0.00019178,2]
[364967152,1749363041624,-924.33,0.00019178,2]
[364967153,1749363041634,-480.0,0.00019178,2]
[364967154,1749363041642,-480.0,0.00019178,2]
[364967155,1749363041652,-480.0,0.00019178,2]
[364967156,1749363041662,-480.0,0.00019178,2]
[364967157,1749363041671,-480.0,0.00019178,2]
[364967158,1749363041681,-480.0,0.00019178,2]
[364967159,1749363041691,-676.06,0.00019178,2]
[364967160,1749363041700,-480.0,0.00019178,2]
[364967161,1749363041710,-651.85801458,0.00019178,2]
[364967162,1749363041730,-73.61198542,0.00019178,2]
[364967163,1749363041739,-337.23498652,0.00019178,2]
[364967206,1749363046223,-274.0,0.00019177,2]
[364967207,1749363046234,-142.83501348,0.00019178,2]
[364967208,1749363046243,-327.29483864,0.00019178,2]
[364967209,1749363046253,-480.0,0.00019178,2]
[364967210,1749363046263,-480.0,0.00019178,2]
[364967211,1749363046274,-357.20482972,0.00019178,2]
[364967212,1749363046290,-223.90517028,0.00019178,2]
[364967213,1749363046306,-480.0,0.00019178,2]
[364967214,1749363046317,-286.09482972,0.00019178,2]
[364967215,1749363046329,-193.90517028,0.00019178,2]
[364967216,1749363046339,-480.0,0.00019178,2]
[364967217,1749363046351,-480.0,0.00019178,2]
[364967218,1749363046363,-233.19859702,0.00019178,2]
[364967219,1749363046450,-246.80140298,0.00019178,2]
[364967220,1749363046460,-480.0,0.00019178,2]
[364967221,1749363046470,-480.0,0.00019178,2]
[364967222,1749363046481,-447.37360494,0.00019178,2]
[364967322,1749363447455,261.76,0.00013699,2]
[364967331,1749363665687,525.59,0.00016274,2]
[364967337,1749363855652,-150.0,0.00018149,7]
[364967338,1749363855678,-573.86,0.00018274,2]
[364967339,1749363855705,-205.9,0.00018304,2]
[364967340,1749363855731,-200.0,0.00018313,2]
[364967341,1749363855756,-1225.05,0.00018324,2]
[364967342,1749363855783,-525.59,0.00018538,2]
[364967343,1749363855808,-152.0,0.00018705,3]
[364967344,1749363855833,-166.7,0.00018744,2]
[364967345,1749363855864,-205.0,0.00018773,2]
[364967346,1749363855890,-250.0,0.00019,2]
[364967347,1749363855916,-200.0,0.00019025,2]
[364967348,1749363855944,-179.442993,0.0001904,2]
[364967349,1749363855971,-207.4,0.00019067,2]
[364967350,1749363855997,-168.0,0.00019074,2]
[364967351,1749363856023,-1200.0,0.00019077,2]
[364967352,1749363856048,-300.0,0.00019077,2]
[364967353,1749363856072,-300.0,0.00019077,2]
[364967354,1749363856097,-168.0,0.00019077,2]
[364967355,1749363856123,-6164.95248658,0.00019078,2]
[364967356,1749363856148,-2603.09402635,0.00019078,2]
[364967357,1749363856172,-155.96558713,0.00019078,2]
[364967358,1749363856198,-500.0,0.00019078,2]
[364967359,1749363856222,-2453.4691,0.00019078,2]
[364967360,1749363856248,-162.85,0.000191,2]
[364967361,1749363856273,-461.04,0.000191,2]
[364967362,1749363856298,-2603.0940262,0.00019121,2]
[364967363,1749363856324,-173.87870325,0.00019142,2]
[364967364,1749363856349,-591.03874872,0.00019142,2]
[364967365,1749363856374,-168.0,0.00019143,2]
[364967366,1749363856398,-2603.0940262,0.00019165,2]
[364967367,1749363856422,-151.0,0.00019166,2]
[364967368,1749363856445,-19501.87383976,0.00019168,2]
[364967369,1749363856471,-6164.95248651,0.00019169,2]
[364967370,1749363856494,-300.0,0.00019177,2]
[364967371,1749363856519,-213.72542258,0.00019177,2]
[364967372,1749363856544,-221.88489069,0.00019177,2]
[364967373,1749363856568,-480.0,0.00019178,2]
[364967374,1749363856592,-480.0,0.00019178,2]
[364967375,1749363856618,-480.0,0.00019178,2]
[364967376,1749363856643,-480.89746383,0.00019178,2]
[364967377,1749363856668,-1098.72,0.00019178,2]
[364967378,1749363856693,-480.0,0.00019178,2]
[364967379,1749363856717,-480.0,0.00019178,2]
[364967380,1749363856743,-480.0,0.00019178,2]
[364967381,1749363856767,-480.0,0.00019178,2]
[364967382,1749363856792,-480.0,0.00019178,2]
[364967383,1749363856818,-480.0,0.00019178,2]
[364967384,1749363856845,-480.0,0.00019178,2]
[364967385,1749363856873,-480.0,0.00019178,2]
[364967386,1749363856900,-480.0,0.00019178,2]
[364967387,1749363856925,-480.0,0.00019178,2]
[364967388,1749363856949,-480.0,0.00019178,2]
[364967389,1749363856975,-480.0,0.00019178,2]
[364967390,1749363857000,-480.0,0.00019178,2]
[364967391,1749363857025,-480.0,0.00019178,2]
[364967392,1749363857049,-480.0,0.00019178,2]
[364967393,1749363857074,-480.0,0.00019178,2]
[364967394,1749363857098,-480.0,0.00019178,2]
[364967395,1749363857123,-480.0,0.00019178,2]
[364967396,1749363857147,-480.0,0.00019178,2]
[364967397,1749363857171,-446.89118019,0.00019178,2]
[364967398,1749363857196,-480.0,0.00019178,2]
[364967399,1749363857221,-480.0,0.00019178,2]
[364967400,1749363857245,-480.0,0.00019178,2]
[364967401,1749363857270,-480.0,0.00019178,2]
[364967402,1749363857293,-480.0,0.00019178,2]
[364967403,1749363857318,-200.0,0.00019178,2]
[364967404,1749363857343,-615.44,0.00019178,2]
[364967405,1749363857368,-755.73,0.00019178,2]
[364967406,1749363857394,-480.0,0.00019178,2]
[364967407,1749363857417,-480.0,0.00019178,2]
[364967408,1749363857441,-480.0,0.00019178,2]
[364967409,1749363857464,-151.0,0.00019178,2]
[364967410,1749363857488,-480.0,0.00019178,2]
[364967411,1749363857512,-480.0,0.00019178,2]
[364967412,1749363857537,-758.45,0.00019178,2]
[364967413,1749363857562,-161.92,0.00019178,2]
[364967414,1749363857588,-480.0,0.00019178,2]
[364967415,1749363857782,-480.0,0.00019178,2]
[364967416,1749363857808,-480.0,0.00019178,2]
[364967417,1749363857834,-480.0,0.00019178,2]
[364967418,1749363857862,-480.0,0.00019178,2]
[364967419,1749363857887,-264.67399785,0.00019178,2]
[364967420,1749363857912,-183.18,0.00019178,2]
[364967421,1749363857937,-176.91,0.00019178,2]
[364967422,1749363857963,-480.0,0.00019178,2]
[364967423,1749363857988,-480.0,0.00019178,2]
[364967424,1749363858014,-480.0,0.00019178,2]
[364967425,1749363858040,-480.0,0.00019178,2]
[364967426,1749363858066,-480.0,0.00019178,2]
[364967427,1749363858092,-509.07026454,0.00019178,2]
[364967428,1749363858118,-480.0,0.00019178,2]
[364967429,1749363858145,-480.0,0.00019178,2]
[364967430,1749363858171,-480.0,0.00019178,2]
[364967431,1749363858197,-480.0,0.00019178,2]
[364967432,1749363858222,-496.78237464,0.00019178,2]
[364967433,1749363858252,-480.0,0.00019178,2]
[364967434,1749363858278,-587.84,0.00019178,2]
[364967435,1749363858303,-281.3,0.00019178,2]
[364967436,1749363858328,-480.0,0.00019178,2]
[364967437,1749363858353,-480.0,0.00019178,2]
[364967438,1749363858377,-480.0,0.00019178,2]
[364967439,1749363858402,-480.0,0.00019178,2]